bitfinex-derivatives/quotes_ETHF0:USTF0_20250115
["timestamp","ask_amount","ask_price","bid_price","bid_amount"]
[1736903269020,3.4656239,3226.5,3226.4,0.31005]
[1736903269216,0.5819,3227.1,3226.4,10.64481353]
[1736903269420,9.69645406,3227.2,3227.1,0.30998]
[1736903269921,9.69645406,3227.2,3227.1,41.66788]
[1736903270307,3.2078,3228.0,3227.1,41.3579]
[1736903270517,3.2078,3228.0,3227.9,0.30991]
[1736903270820,6.65998083,3228.0,3227.9,0.30991]
[1736903271120,7.15672531,3228.0,3227.9,0.30991]
[1736903273822,7.15672531,3228.0,3227.5,2.43701353]
[1736903274028,6.65998083,3228.0,3227.8,0.30992]
[1736903274722,0.49641006,3227.9,3227.8,0.30992]
[1736903275117,6.65998083,3228.0,3227.8,0.30992]
[1736903275523,9.6870885,3227.9,3227.8,0.30992]
[1736903275718,9.6870885,3227.9,3227.7,0.30992]
[1736903275914,9.6870885,3227.9,3227.4,0.5289]
[1736903276222,13.22781325,3227.9,3227.7,0.30992]
[1736903276416,13.22781325,3227.9,3227.4,0.5289]
[1736903276619,13.22781325,3227.9,3227.8,0.30992]
[1736903276827,14.03368853,3227.9,3227.7,0.30992]
[1736903277117,14.03368853,3227.9,3227.3,5.64481353]
[1736903277118,0.49597609,3227.8,3227.3,3.2078]
[1736903277624,3.75495436,3227.7,3227.4,0.30995]
[1736903277821,0.5297,3227.6,3227.5,0.30995]
[1736903278016,4.2682,3227.6,3227.5,0.30995]
[1736903278216,7.58817911,3227.6,3227.5,0.30995]
[1736903279019,7.58817911,3227.6,3227.1,40.8]
[1736903279223,7.58817911,3227.6,3227.4,0.30995]
[1736903279419,0.5487,3227.5,3227.4,0.30995]
[1736903279922,4.00766182,3227.5,3227.4,0.30995]
[1736903282025,3.45896182,3227.5,3227.4,0.30995]
[1736903285218,3.45896182,3227.5,3227.1,40.8]
[1736903285419,3.45896182,3227.5,3227.4,0.30996]
[1736903285623,3.45896182,3227.5,3227.1,40.8]
[1736903285816,4.26486493,3227.5,3227.3,0.30996]
[1736903286419,0.30998,3227.2,3227.1,40.8]
[1736903286649,0.31,3227.0,3226.7,0.31002]
[1736903286820,0.5639,3226.9,3226.3,6.41997353]
[1736903287023,3.33883696,3226.9,3226.8,0.31001]
[1736903287322,3.2078,3227.2,3226.8,40.8]
[1736903287631,2.9128,3227.6,3227.5,0.30995]
[1736903288127,6.41904797,3227.6,3227.5,0.30995]
[1736903288518,5.13404797,3227.6,3227.5,0.30995]
[1736903288919,5.13404797,3227.6,3227.1,3.2078]
[1736903289125,4.01356302,3227.5,3227.1,3.2078]
[1736903289326,4.01356302,3227.5,3227.3,0.30996]
[1736903289327,3.70361302,3227.5,3227.3,0.30996]
[1736903289620,3.57580595,3227.4,3226.8,40.8]
[1736903289849,4.07161897,3227.4,3227.2,0.30997]
[1736903290024,4.07161897,3227.4,3226.8,40.8]
[1736903290227,0.30999,3227.1,3226.9,0.31]
[1736903290422,1.0957,3227.0,3226.9,0.31]
[1736903290729,4.95570231,3227.0,3226.9,0.31]
[1736903295638,4.95570231,3227.0,3226.8,40.8]
[1736903295639,5.26570231,3227.0,3226.8,40.8]
[1736903295944,4.95570231,3227.0,3226.8,41.11001]
[1736903296246,5.26570231,3227.0,3226.8,41.11001]
[1736903296548,4.95570231,3227.0,3226.8,41.11001]
[1736903296740,4.95570231,3227.0,3226.9,0.31]
[1736903297144,4.95570231,3227.0,3226.8,40.8]
[1736903297546,4.95570231,3227.0,3226.8,41.11001]
[1736903297746,4.95570231,3227.0,3226.9,2.74701353]
[1736903298045,0.5335,3227.0,3226.9,2.74701353]
[1736903299363,1.285,3227.3,3227.2,0.30998]
[1736903299746,3.56872298,3227.3,3227.2,0.30998]
[1736903299943,14.11631082,3227.5,3227.2,2.43701353]
[1736903300142,3.4674091,3227.3,3227.2,0.30997]
[1736903300546,3.4674091,3227.3,3226.9,6.19811353]
[1736903300547,3.2078,3227.5,3227.3,0.30997]
[1736903300747,3.51775,3227.5,3227.3,0.30997]
[1736903301045,3.41225524,3227.4,3227.3,0.30997]
[1736903302251,1.0618,3227.6,3227.1,0.30998]
[1736903302441,1.0618,3227.6,3227.5,0.30995]
[1736903302750,4.41289805,3227.6,3227.5,0.30995]
[1736903305550,0.5322,3227.6,3227.5,0.30995]
[1736903305750,1.8241,3227.7,3227.6,0.30994]
[1736903306146,1.8241,3227.7,3227.2,2.43701353]
[1736903306351,1.8241,3227.7,3227.5,0.30994]
[1736903306352,2.13403,3227.7,3227.5,0.30994]
[1736903306952,1.8241,3227.7,3227.2,2.43701353]
[1736903307149,0.30994,3227.6,3227.4,0.30995]
[1736903307343,2.13403,3227.7,3227.5,0.30994]
[1736903307750,1.8241,3227.7,3227.2,2.43701353]
[1736903307954,3.62277726,3227.6,3227.4,0.30995]
[1736903308152,3.31283726,3227.6,3227.5,0.30995]
[1736903308347,3.80944172,3227.6,3227.5,0.30995]
[1736903309156,3.80944172,3227.6,3227.4,0.30995]
[1736903309856,10.90851082,3227.5,3227.4,0.30995]
[1736903310156,11.40511528,3227.5,3227.4,0.30995]
[1736903314654,23.50889621,3227.5,3227.4,0.30995]
[1736903315559,23.01229175,3227.5,3227.4,0.30995]
[1736903319565,12.10378093,3227.5,3227.4,0.30995]
[1736903323562,12.60079174,3227.5,3227.4,0.30995]
[1736903324967,12.10378093,3227.5,3227.4,3.51775]
[1736903325154,21.7986942,3227.5,3227.4,44.31775]
[1736903326168,9.69491327,3227.9,3227.8,0.30992]
[1736903326363,10.19203902,3227.9,3227.8,2.74693353]
[1736903327059,0.49712575,3227.9,3227.8,2.74693353]
[1736903327764,10.23841327,3228.0,3227.9,0.30991]
[1736903327960,10.73565057,3228.0,3227.9,0.30991]
[1736903328267,1.0407373,3228.0,3227.9,0.30991]
[1736903328864,6.1896294,3228.1,3227.9,2.43701353]
[1736903329064,4.6347694,3228.1,3228.0,3.2279]
[1736903329269,4.0094994,3228.1,3228.0,3.2279]
[1736903329468,4.0094994,3228.1,3228.0,44.0279]
[1736903330166,1.0724,3228.8,3228.7,0.30983]
[1736903330367,1.0724,3228.8,3228.7,2.74684353]
[1736903330871,1.0724,3228.8,3228.7,43.54684353]
[1736903332864,3.2078,3229.4,3228.7,43.23701353]
[1736903333056,3.2078,3229.4,3229.1,2.74680353]
[1736903333057,1.0946,3229.2,3229.1,2.74680353]
[1736903333464,0.5223,3229.3,3229.1,2.43701353]
[1736903333675,0.5223,3229.3,3229.2,0.30978]
[1736903335371,1.0946,3229.6,3229.5,0.30975]
[1736903335668,1.0946,3229.6,3229.5,2.74676353]
[1736903336057,1.0946,3229.6,3229.5,43.54676353]
[1736903339477,1.02883442,3229.8,3229.7,0.30974]
[1736903339774,0.5457,3229.8,3229.7,0.30974]
[1736903340459,3.2078,3229.9,3229.7,2.43701353]
[1736903340666,14.38265021,3232.8,3230.1,0.3097]
[1736903340667,0.5506,3230.2,3230.1,0.3097]
[1736903340866,0.5506,3230.2,3230.1,2.74671353]
[1736903341266,0.5506,3230.2,3230.1,5.95451353]
[1736903341777,0.5506,3230.2,3230.1,0.3097]
[1736903341969,0.5506,3230.2,3229.7,3.2078]
[1736903341970,4.43357051,3230.2,3229.7,3.2078]
[1736903342168,4.43357051,3230.2,3230.1,0.3097]
[1736903342371,1.0569,3230.2,3230.1,2.74671353]
[1736903342872,1.0569,3230.2,3230.1,0.3097]
[1736903345371,1.0569,3230.2,3230.1,2.74671353]
[1736903346677,3.2078,3230.7,3230.6,0.30965]
[1736903346975,6.51392909,3230.7,3230.6,0.30965]
[1736903347566,3.30612909,3230.7,3230.6,0.30965]
[1736903347971,4.36172909,3230.8,3230.7,0.30964]
[1736903348478,1.0556,3230.8,3230.1,6.41906353]
[1736903348776,4.57940134,3230.8,3230.7,0.30964]
[1736903350569,4.57940134,3230.8,3230.7,2.74665353]
[1736903350774,3.2078,3231.1,3230.7,2.43701353]
[1736903351092,3.2078,3231.6,3231.0,3.21104353]
[1736903351272,0.5438,3231.9,3231.7,0.30954]
[1736903351472,0.5438,3231.9,3231.7,2.74655353]
[1736903351666,0.5438,3231.9,3231.8,0.30953]
[1736903352975,0.5438,3231.9,3231.6,0.30955]
[1736903353194,4.04892417,3231.9,3231.4,3.2078]
[1736903353678,3.2078,3231.7,3231.1,43.23701353]
[1736903353877,3.2078,3231.7,3231.5,0.30956]
[1736903354077,4.05122417,3231.6,3231.1,43.23701353]
[1736903354276,3.2078,3231.3,3231.1,40.8]
[1736903354577,0.5169,3231.2,3231.1,0.3096]
[1736903354774,4.0469849,3231.2,3231.1,0.3096]
[1736903354980,0.5169,3231.2,3231.1,2.74661353]
[1736903358676,0.5314,3231.5,3231.1,2.43701353]
[1736903358875,0.5314,3231.5,3231.4,0.30957]
[1736903360073,4.08398886,3231.5,3230.9,3.2078]
[1736903360381,3.2078,3231.3,3231.1,0.3096]
[1736903360573,3.51738,3231.3,3231.1,0.3096]
[1736903360877,3.41236174,3231.2,3231.1,0.3096]
[1736903361274,3.2078,3231.3,3231.2,0.30959]
[1736903361478,10.64481353,3231.3,3230.0,3.2078]
[1736903361778,0.30965,3230.6,3230.3,0.30968]
[1736903361980,0.5216,3230.5,3230.3,0.30968]
[1736903362182,0.5216,3230.5,3230.1,40.8]
[1736903362183,4.58671641,3230.5,3230.4,0.30967]
[1736903362487,1.0537,3230.5,3230.4,0.30967]
[1736903362785,0.5216,3230.5,3230.4,0.30967]
[1736903364379,0.5212,3231.0,3230.4,3.2078]
[1736903364582,2.12996,3231.6,3231.3,0.30957]
[1736903364882,4.066023,3231.4,3231.3,0.30957]
[1736903365478,0.5374,3231.6,3231.3,41.10957]
[1736903365677,0.5212,3231.8,3231.3,40.8]
[1736903365987,4.18543724,3231.8,3231.5,0.30955]
[1736903366288,3.87589724,3231.8,3231.6,0.30955]
[1736903366476,3.87589724,3231.8,3231.7,0.30954]
[1736903367476,0.5212,3231.8,3231.7,0.30954]
[1736903369688,0.002,3232.0,3231.6,0.4981]
[1736903369689,0.002,3232.0,3231.6,3.7059]
[1736903369879,0.002,3232.0,3231.9,2.74653353]
[1736903374379,0.002,3232.0,3231.9,40.8]
[1736903374583,0.002,3232.0,3231.6,6.64711353]
[1736903374584,0.30951,3232.1,3231.7,0.30954]
[1736903375088,0.499,3232.0,3231.8,40.8]
[1736903375284,0.30952,3231.9,3231.8,40.8]
[1736903375481,1.0388,3231.9,3231.8,40.8]
[1736903376389,1.34832,3231.9,3231.8,40.8]
[1736903376681,1.0388,3231.9,3231.8,40.8]
[1736903376985,1.0388,3231.9,3231.8,41.10953]
[1736903377287,1.0388,3231.9,3231.8,40.8]
[1736903377488,4.93766581,3231.9,3231.8,40.8]
[1736903377684,4.62814581,3231.9,3231.1,3.2078]
[1736903378184,0.30954,3231.7,3231.4,40.8]
[1736903378488,4.62814581,3231.9,3231.7,0.30954]
[1736903378685,4.62814581,3231.9,3231.6,2.43701353]
[1736903379088,4.62814581,3231.9,3231.7,0.30954]
[1736903379393,4.62814581,3231.9,3231.8,0.30953]
[1736903379684,3.2078,3232.5,3231.8,3.51733]
[1736903379886,3.7157,3232.5,3231.9,2.94991353]
[1736903380083,7.51590011,3232.5,3232.2,0.3095]
[1736903380388,7.20643011,3232.5,3232.3,41.10948]
[1736903380986,7.51590011,3232.5,3232.3,40.8]
[1736903381283,7.20643011,3232.5,3232.3,40.8]
[1736903381631,7.20643011,3232.5,3232.4,0.30948]
[1736903383590,3.99863011,3232.5,3232.4,0.30948]
[1736903384795,1.282,3232.7,3232.6,0.30946]
[1736903386089,4.67273025,3232.7,3232.6,0.30946]
[1736903387591,3.39073025,3232.7,3232.6,3.51726]
[1736903388193,3.7513,3233.0,3232.6,3.2078]
[1736903388393,3.7513,3233.0,3232.9,0.30943]
[1736903389395,4.2393,3233.4,3233.3,0.30939]
[1736903390296,3.7389,3233.4,3233.3,0.30939]
[1736903390687,3.7389,3233.4,3233.3,41.10939]
[1736903390887,1.7752,3233.7,3233.6,0.30936]
[1736903390888,0.4932,3233.7,3233.6,0.30936]
[1736903391295,4.05781229,3233.7,3233.6,0.30936]
[1736903391890,0.4932,3233.7,3233.6,41.10936]
[1736903392130,0.5131,3233.8,3233.6,40.8]
[1736903392290,0.5131,3233.8,3233.7,0.30935]
[1736903392698,3.2078,3234.1,3234.0,0.30932]
[1736903392891,3.2078,3234.1,3234.0,41.10932]
[1736903393295,3.2078,3234.1,3234.0,41.10380461]
[1736903394902,6.7625378,3234.1,3233.0,3.2078]
[1736903395203,0.30939,3233.4,3233.2,0.30939]
[1736903395394,1.5534,3233.3,3233.2,0.30939]
[1736903395598,5.24975492,3233.3,3233.2,0.30939]
[1736903395794,4.94036492,3233.3,3232.9,0.30943]
[1736903396008,10.58517845,3233.3,3232.7,0.01183]
[1736903396318,0.30944,3232.8,3232.7,0.01183]
[1736903396491,0.30942,3233.0,3232.8,0.30943]
[1736903396698,0.30941,3233.1,3232.8,0.30943]
[1736903396894,3.25173298,3232.9,3232.8,0.30943]
[1736903397100,3.25173298,3233.0,3232.8,0.30943]
[1736903397292,0.30942,3233.0,3232.8,0.30943]
[1736903397504,7.19821353,3233.3,3232.7,0.01183]
[1736903397704,3.44326722,3233.0,3232.8,0.30943]
[1736903397899,3.75266722,3233.2,3232.9,0.30942]
[1736903398099,3.44326722,3233.0,3232.7,0.01183]
[1736903398293,3.44326722,3233.0,3232.9,0.30943]
[1736903398597,3.30103499,3233.2,3232.7,0.01183]
[1736903398801,3.30103499,3233.0,3232.8,0.30943]
[1736903399107,0.30942,3233.1,3232.8,0.30943]
[1736903399294,6.35259,3233.3,3233.0,0.30942]
[1736903399498,5.07059,3233.3,3233.0,0.30942]
[1736903399803,3.33386171,3233.1,3232.8,0.30943]
[1736903400003,0.30942,3233.1,3232.8,0.30943]
[1736903400200,1.281,3233.2,3232.7,0.01183]
[1736903400549,3.40247072,3233.1,3232.7,0.01183]
[1736903401002,1.281,3233.1,3233.0,0.30942]
[1736903401200,4.7612,3233.3,3233.2,0.3094]
[1736903401605,4.7612,3233.3,3233.2,41.1094]
[1736903402098,8.36277672,3233.3,3233.2,40.8]
[1736903402298,8.36277672,3233.3,3232.7,0.01183]
[1736903402299,0.30944,3232.8,3232.7,0.01183]
[1736903402499,4.4888,3232.8,3232.7,0.01183]
[1736903402702,7.94624298,3232.8,3232.7,41.12128]
[1736903406015,6.66524298,3232.8,3232.7,41.12128]
[1736903406311,2.8344,3233.3,3233.2,0.3094]
[1736903406713,1.5534,3233.3,3233.2,0.3094]
[1736903406909,1.5534,3233.3,3233.2,41.1094]
[1736903408301,4.91030805,3233.3,3233.2,41.1094]
[1736903410607,4.91030805,3233.3,3233.2,40.8]
[1736903410912,4.91030805,3233.3,3232.7,0.01183]
[1736903410913,0.30944,3232.8,3232.7,0.01183]
[1736903411209,4.94966104,3232.8,3232.7,0.01183]
[1736903412109,4.64022104,3232.8,3232.7,0.01183]
[1736903412310,4.64022104,3232.8,3232.7,0.32128]
[1736903412514,4.94966104,3232.8,3232.7,0.01183]
[1736903415112,3.35922104,3232.8,3232.7,3.21963]
[1736903415309,0.526,3233.3,3233.2,0.3094]
[1736903415614,3.2078,3233.7,3233.6,0.30936]
[1736903416221,3.2078,3233.7,3233.6,41.10936]
[1736903417307,3.2078,3233.7,3233.6,40.8]
[1736903417518,6.79770478,3233.7,3233.6,40.8]
[1736903417716,6.79770478,3233.7,3233.6,41.10936]
[1736903418811,6.79770478,3233.7,3233.6,40.8]
[1736903419011,6.79770478,3233.7,3233.6,41.10936]
[1736903420226,7.10706478,3233.7,3233.3,0.30938]
[1736903420466,6.79770478,3233.7,3233.6,0.30936]
[1736903420632,6.79770478,3233.7,3233.6,41.10936]
[1736903421328,0.4995,3234.0,3233.9,0.30933]
[1736903421538,0.4995,3234.0,3233.9,2.74634353]
[1736903422428,3.2078,3234.2,3234.1,0.30931]
[1736903422734,0.4676,3234.4,3234.3,0.3093]
[1736903423129,3.89485939,3234.4,3234.3,0.3093]
[1736903425435,3.2078,3234.7,3234.2,2.43701353]
[1736903425436,4.4888,3234.7,3234.2,2.43701353]
[1736903425640,4.4888,3234.7,3234.6,0.30927]
[1736903425936,3.36231291,3234.5,3234.4,0.30929]
[1736903426142,3.36231291,3234.7,3234.5,0.30927]
[1736903426330,2.221,3234.8,3234.5,0.30927]
[1736903426531,3.34045007,3234.7,3234.5,0.30927]
[1736903427237,3.34045007,3234.7,3234.3,0.4617]
[1736903427531,3.34045007,3234.7,3234.6,0.30927]
[1736903427942,3.34045007,3234.7,3234.6,41.10927]
[1736903428133,0.472,3234.8,3234.6,40.8]
[1736903428339,3.2078,3235.1,3234.6,40.8]
[1736903428340,3.6615,3235.1,3235.0,0.30923]
[1736903428643,7.44815651,3235.1,3235.0,0.30923]
[1736903428835,6.53175651,3235.1,3235.0,0.30923]
[1736903429142,4.1242,3235.5,3235.4,0.30919]
[1736903429328,4.1242,3235.5,3235.4,2.74620353]
[1736903429534,3.2078,3235.5,3235.4,43.54620353]
[1736903430437,4.1519,3236.2,3235.4,43.23701353]
[1736903430638,3.2078,3236.2,3236.1,0.30912]
[1736903431081,6.6281781,3236.2,3235.5,3.2078]
[1736903431337,0.4904,3236.1,3235.4,43.23701353]
[1736903431533,0.4904,3236.1,3235.9,0.30914]
[1736903431833,3.25537812,3236.0,3235.6,0.30917]
[1736903432038,4.06411812,3236.0,3235.6,0.30917]
[1736903432238,4.25447812,3236.0,3235.4,43.23701353]
[1736903432439,4.25447812,3236.0,3235.8,0.30915]
[1736903432740,4.56361812,3236.0,3235.7,0.30916]
[1736903432941,4.25447812,3236.0,3235.7,0.30916]
[1736903433174,4.25447812,3236.0,3235.8,0.30915]
[1736903433334,4.25447812,3236.0,3235.7,0.30916]
[1736903433641,4.56361812,3236.0,3235.7,0.30916]
[1736903433842,4.25447812,3236.0,3235.7,0.30916]
[1736903434342,4.25447812,3236.0,3235.7,0.30915]
[1736903434737,4.25447812,3236.0,3235.8,0.30915]
[1736903435734,4.25447812,3236.0,3235.4,40.8]
[1736903435735,4.25447812,3236.0,3235.7,0.30916]
[1736903436535,4.25447812,3236.0,3235.8,0.30915]
[1736903436847,4.56361812,3236.0,3235.6,0.30917]
[1736903437341,5.84361812,3236.0,3235.6,0.30917]
[1736903438241,0.30915,3235.9,3235.6,0.30917]
[1736903438632,3.41499506,3235.8,3235.6,0.30917]
[1736903438832,3.41499506,3235.8,3235.7,0.30916]
[1736903439143,3.41499506,3235.9,3235.4,40.8]
[1736903439346,0.4996,3236.0,3235.7,0.30915]
[1736903439647,3.22774504,3235.9,3235.7,0.30915]
[1736903439947,3.22774504,3235.9,3235.8,0.30915]
[1736903440339,3.22774504,3235.9,3235.7,0.30916]
[1736903440846,0.30916,3235.8,3235.5,0.30918]
[1736903441146,0.77626,3235.8,3235.5,0.30918]
[1736903441341,3.24713924,3235.7,3235.5,0.30918]
[1736903441648,3.24713924,3235.7,3235.6,0.30917]
[1736903441841,3.55629924,3235.7,3235.5,0.30918]
[1736903442145,3.24713924,3235.7,3235.6,0.30917]
[1736903442845,3.24713924,3235.7,3235.4,40.8]
[1736903443247,0.30918,3235.5,3235.4,40.8]
[1736903443744,3.57639321,3235.5,3235.4,40.8]
[1736903444144,0.4671,3235.8,3235.7,0.30916]
[1736903444344,0.4996,3236.0,3235.4,44.50947792]
[1736903444548,0.4996,3236.0,3235.9,0.30914]
[1736903444937,3.88096865,3236.0,3235.9,0.30914]
[1736903445844,3.88096865,3236.0,3235.4,43.73649792]
[1736903446041,3.88096865,3236.0,3235.4,40.8]
[1736903446242,0.30918,3235.5,3235.4,40.8]
[1736903446440,3.2078,3235.8,3235.0,0.30922]
[1736903446640,3.2078,3235.2,3235.0,0.30922]
[1736903447045,3.29874455,3235.1,3235.0,0.30922]
[1736903447239,3.29874455,3235.1,3234.6,3.2078]
[1736903447447,0.30923,3235.0,3234.8,0.30925]
[1736903447646,3.29874455,3235.1,3234.8,0.30925]
[1736903447647,3.60797455,3235.1,3234.8,0.30925]
[1736903447950,3.24988556,3234.9,3234.8,0.30925]
[1736903448144,3.24988556,3235.0,3234.7,40.8]
[1736903448346,0.30923,3235.1,3234.8,0.30924]
[1736903448552,3.36285612,3235.0,3234.9,0.30924]
[1736903448751,3.67208612,3235.0,3234.8,0.30925]
[1736903448945,3.36285612,3235.0,3234.7,40.8]
[1736903449144,3.36285612,3235.1,3234.7,40.8]
[1736903449348,3.51705,3234.8,3234.7,40.8]
[1736903449845,6.75030856,3234.8,3234.7,40.8]
[1736903450747,6.44105856,3234.8,3234.7,41.10926]
[1736903451148,3.2078,3234.8,3234.7,41.10926]
[1736903452157,6.63238436,3234.8,3234.7,41.10926]
[1736903453451,6.63238436,3234.8,3234.7,43.53348975]
[1736903454249,6.63238436,3234.8,3234.7,40.8]
[1736903454451,6.63238436,3234.8,3234.7,41.10926]
[1736903455746,6.63238436,3234.8,3234.7,40.8]
[1736903456151,6.63238436,3234.8,3234.7,41.10926]
[1736903456350,6.63238436,3234.8,3234.7,43.53348975]
[1736903457750,3.2078,3234.8,3234.7,43.53348975]
[1736903458650,3.2078,3235.7,3235.1,0.30922]
[1736903458853,0.9467,3236.0,3235.9,0.30914]
[1736903459051,4.51181754,3236.0,3235.9,0.30914]
[1736903459253,1.25583,3236.0,3235.9,40.8]
[1736903459655,4.69314454,3236.0,3235.9,40.8]
[1736903459855,4.38401454,3236.0,3235.9,40.8]
[1736903460568,4.38401454,3236.0,3235.9,41.10914]
[1736903461155,4.38401454,3236.0,3235.4,3.2078]
[1736903461463,3.2078,3235.7,3234.9,2.42422975]
[1736903461760,0.30922,3235.1,3234.8,0.30924]
[1736903461956,2.7271,3235.0,3234.8,0.30924]
[1736903462157,6.04133835,3235.0,3234.8,0.30924]
[1736903462553,6.04133835,3235.0,3234.9,0.30924]
[1736903463254,0.30925,3234.8,3234.7,40.8]
[1736903463562,6.64326889,3234.8,3234.7,40.8]
[1736903463755,6.64326889,3234.8,3234.7,41.10926]
[1736903463958,6.64326889,3234.8,3234.7,40.8]
[1736903464951,6.95251889,3234.8,3234.7,40.8]
[1736903465660,11.64326889,3234.8,3234.6,0.01347]
[1736903465856,0.30933,3234.0,3233.6,3.51715]
[1736903466055,3.2078,3234.0,3233.8,0.30934]
[1736903466263,3.2078,3234.0,3233.9,0.30933]
[1736903466662,6.49863664,3234.0,3233.9,41.10933]
[1736903468759,6.49863664,3234.0,3233.9,40.8]
[1736903468968,6.98683664,3234.0,3233.9,40.8]
[1736903470465,7.29615664,3234.0,3233.9,40.8]
[1736903471167,6.98683664,3234.0,3233.9,41.10933]
[1736903471967,6.98683664,3234.0,3233.9,40.8]
[1736903472767,6.98683664,3234.0,3233.9,41.10933]
[1736903472964,6.98683664,3234.0,3233.9,40.8]
[1736903473185,7.29615664,3234.0,3233.9,40.8]
[1736903473469,7.75755664,3234.0,3233.9,40.8]
[1736903473862,8.21045664,3234.0,3233.9,40.8]
[1736903479771,12.90113664,3234.0,3232.9,3.2078]
[1736903479967,3.2078,3233.5,3232.9,3.2078]
[1736903480173,0.30939,3233.3,3233.1,0.30941]
[1736903480383,0.30939,3233.3,3233.2,40.8]
[1736903480674,3.60116453,3233.3,3233.2,40.8]
[1736903480869,3.29177453,3233.3,3233.2,40.8]
[1736903481471,1.29,3233.4,3233.3,0.30939]
[1736903482167,1.29,3233.4,3233.3,41.10939]
[1736903482370,1.29,3233.4,3233.3,40.8]
[1736903482570,5.10618801,3233.4,3233.3,40.8]
[1736903482878,5.59648801,3233.4,3233.3,40.8]
[1736903485674,5.59648801,3233.4,3233.1,0.3094]
[1736903485898,5.28710801,3233.4,3232.9,0.4847]
[1736903486072,0.30939,3233.3,3233.2,40.8]
[1736903486479,3.60921388,3233.3,3233.2,40.8]
[1736903486676,3.29982388,3233.3,3233.2,41.1094]
[1736903487373,3.29982388,3233.3,3233.2,40.8]
[1736903487574,4.09921388,3233.3,3233.2,40.8]
[1736903487778,4.72112388,3233.3,3232.6,0.9433]
[1736903488075,0.30944,3232.8,3232.6,0.9433]
[1736903488378,3.3204373,3232.7,3232.6,0.9433]
[1736903488780,3.6298873,3232.7,3232.6,41.7433]
[1736903489778,3.6298873,3232.7,3232.6,41.2598]
[1736903490375,3.6298873,3232.7,3232.6,40.8]
[1736903490987,0.30948,3232.4,3232.2,0.76539]
[1736903491282,0.30947,3232.5,3232.3,0.30948]
[1736903491477,0.30947,3232.5,3232.4,40.8]
[1736903491979,3.77280034,3232.5,3232.4,40.8]
[1736903493580,6.19703009,3232.5,3232.4,40.8]
[1736903493780,6.19703009,3232.5,3231.1,3.2078]
[1736903493781,0.77373,3232.3,3231.2,0.9571]
[1736903493979,0.30958,3231.3,3231.2,0.4675]
[1736903494180,0.30958,3231.4,3231.2,41.2675]
[1736903494380,0.30958,3231.4,3231.2,40.8]
[1736903494583,3.85426393,3231.3,3231.2,40.8]
[1736903497185,3.85426393,3231.3,3230.1,3.6963]
[1736903497186,8.54468393,3231.3,3230.1,3.6963]
[1736903497392,3.2078,3230.2,3229.4,2.42422975]
[1736903497586,0.30971,3230.0,3229.5,0.30975]
[1736903497896,3.51753,3229.8,3229.4,3.39332975]
[1736903498185,3.2078,3229.8,3229.7,40.8]
[1736903500397,3.2078,3229.8,3229.7,41.10973]
[1736903500623,3.2078,3229.8,3229.7,40.8]
[1736903500795,3.2078,3230.2,3229.7,40.8]
[1736903501094,6.80188738,3230.2,3229.7,40.8]
[1736903501295,7.11157738,3230.2,3229.7,40.8]
[1736903501486,3.2078,3229.8,3229.7,40.8]
[1736903501896,6.77959025,3229.8,3229.7,40.8]
[1736903503096,6.77959025,3229.8,3229.7,41.10973]
[1736903503687,6.77959025,3229.8,3229.7,40.8]
[1736903503893,6.77959025,3229.8,3229.7,41.10973]
[1736903504096,6.77959025,3229.8,3229.7,40.8]
[1736903504296,6.77959025,3229.8,3229.7,41.10973]
[1736903505193,3.2078,3229.8,3229.7,41.10973]
[1736903505390,1.295,3230.2,3230.0,0.3097]
[1736903505595,1.295,3230.2,3229.7,41.10973]
[1736903505799,3.35841422,3230.1,3229.7,41.10973]
[1736903506103,3.35841422,3230.1,3229.8,0.30972]
[1736903506790,3.35841422,3230.1,3229.9,0.30972]
[1736903508899,3.35841422,3230.1,3229.9,0.30973]
[1736903509103,3.35841422,3230.1,3229.7,40.8]
[1736903509402,3.35841422,3230.1,3230.0,0.30973]
[1736903509798,3.35841422,3230.1,3229.9,0.30974]
[1736903512700,5.78264397,3230.1,3229.7,40.8]
[1736903512895,0.30975,3229.8,3229.7,40.8]
[1736903513301,3.8708799,3229.8,3229.7,40.8]
[1736903513801,3.8708799,3229.8,3229.0,0.4941]
[1736903513802,5.98535965,3229.8,3229.0,0.4941]
[1736903514007,5.98535965,3229.8,3228.7,3.2078]
[1736903514008,5.63202975,3229.5,3228.7,3.2078]
[1736903514302,0.3098,3229.3,3229.0,0.30983]
[1736903514497,0.30981,3229.2,3228.9,0.30984]
[1736903514697,3.30102965,3229.2,3228.9,0.30984]
[1736903514899,5.7252594,3229.2,3228.8,40.8]
[1736903515093,5.7252594,3229.2,3228.8,41.10984]
[1736903515094,0.30982,3229.1,3228.8,41.10984]
[1736903515300,3.61084965,3229.1,3228.8,41.10984]
[1736903515908,6.81864965,3229.1,3228.8,41.10984]
[1736903516298,0.30984,3229.0,3228.8,40.8]
[1736903516508,0.30984,3228.9,3228.8,40.8]
[1736903516701,3.66761624,3228.9,3228.8,40.8]
[1736903517808,5.78200599,3228.9,3227.4,3.98275]
[1736903518009,2.42422975,3228.2,3227.5,0.4882]
[1736903518203,3.2078,3228.0,3227.9,41.10993]
[1736903518727,3.26790284,3228.0,3227.9,41.10993]
[1736903521012,1.295,3228.1,3227.9,40.8]
[1736903521512,1.295,3228.1,3228.0,0.30992]
[1736903522021,1.295,3228.1,3228.0,0.78802]
[1736903522611,0.4617,3228.7,3228.0,44.4859]
[1736903522612,1.29,3228.7,3228.0,44.4859]
[1736903522807,1.29,3228.7,3228.5,0.30988]
[1736903523004,0.30991,3228.1,3228.0,40.8]
[1736903523408,3.8364571,3228.1,3228.0,40.8]
[1736903524104,6.26068685,3228.1,3228.0,40.8]
[1736903524304,5.95077685,3228.1,3227.1,0.9294]
[1736903524511,3.2078,3227.6,3227.2,0.30999]